[Event "*** Titled Tuesday 3|2 Blitz"]
[Site "Chess.com"]
[Date "2016.06.07"]
[Round "4"]
[White "Mornar1951"]
[Black "Quiet_Desperation"]
[Result "1-0"]
[WhiteElo "2496"]
[BlackElo "2305"]
[TimeControl "180+2"]
[EndTime "17:46:37 PDT"]
[Termination "Mornar1951 won by resignation"]

1. Nf3 {[%clk 0:03:01.9]} 1... d5 {[%clk 0:02:59]} 2. d4 {[%clk 0:03:01.5]} 2...
Nf6 {[%clk 0:02:59.9]} 3. c4 {[%clk 0:03:02.5]} 3... e6 {[%clk 0:03:01.2]} 4. g3
{[%clk 0:03:03]} 4... Be7 {[%clk 0:03:02.7]} 5. Bg2 {[%clk 0:03:04.6]} 5... O-O
{[%clk 0:03:04]} 6. O-O {[%clk 0:03:05.7]} 6... Nbd7 {[%clk 0:03:05.3]} 7. Nbd2
{[%clk 0:03:03.8]} 7... c6 {[%clk 0:03:06.7]} 8. b3 {[%clk 0:03:03.4]} 8... b6
{[%clk 0:03:08]} 9. Bb2 {[%clk 0:03:05.1]} 9... Bb7 {[%clk 0:03:09.2]} 10. Rc1
{[%clk 0:03:06.8]} 10... Rc8 {[%clk 0:03:10.3]} 11. e3 {[%clk 0:03:08.5]} 11...
c5 {[%clk 0:03:11.2]} 12. Qe2 {[%clk 0:03:08.9]} 12... cxd4 {[%clk 0:03:08.7]}
13. Nxd4 {[%clk 0:03:09.1]} 13... Nc5 {[%clk 0:03:07.9]} 14. Rfd1 {[%clk
0:03:09.5]} 14... Ba6 {[%clk 0:03:00.7]} 15. Ba1 {[%clk 0:02:58.1]} 15... Ncd7
{[%clk 0:02:50.2]} 16. Qe1 {[%clk 0:02:57.4]} 16... Bb7 {[%clk 0:02:48.7]} 17.
cxd5 {[%clk 0:02:54.1]} 17... Nxd5 {[%clk 0:02:49.3]} 18. Nc4 {[%clk 0:02:46.9]}
18... Bb4 {[%clk 0:02:41.7]} 19. Qe2 {[%clk 0:02:46.7]} 19... Qe7 {[%clk
0:02:32.5]} 20. Nf5 {[%clk 0:02:43.3]} 20... exf5 {[%clk 0:02:26.1]} 21. Bxd5
{[%clk 0:02:44.9]} 21... Bxd5 {[%clk 0:02:21.8]} 22. Rxd5 {[%clk 0:02:46.8]}
22... Qe6 {[%clk 0:02:17.4]} 23. Rcd1 {[%clk 0:02:46.1]} 23... Nf6 {[%clk
0:02:18.6]} 24. Re5 {[%clk 0:02:41.6]} 24... Qc6 {[%clk 0:02:13.7]} 25. Rxf5
{[%clk 0:02:42.6]} 25... Ne4 {[%clk 0:02:10.9]} 26. Qg4 {[%clk 0:02:16.9]} 26...
g6 {[%clk 0:02:03]} 27. Rfd5 {[%clk 0:02:16.7]} 27... Nf6 {[%clk 0:01:55.3]} 28.
Bxf6 {[%clk 0:02:12.7]} 28... Qxf6 {[%clk 0:01:56.1]} 29. Ne5 {[%clk 0:02:08.9]}
29... Rc2 {[%clk 0:01:48.6]} 30. Rf1 {[%clk 0:01:52.3]} 30... Qe7 {[%clk
0:01:40.6]} 31. a4 {[%clk 0:01:33.7]} 31... Rfc8 {[%clk 0:01:28.5]} 32. Nc4
{[%clk 0:01:29.3]} 32... Rc5 {[%clk 0:01:24.7]} 33. Qd4 {[%clk 0:01:23.8]} 33...
Rxd5 {[%clk 0:01:24.8]} 34. Qxd5 {[%clk 0:01:25.7]} 34... Bc5 {[%clk 0:01:22.2]}
35. Rd1 {[%clk 0:01:23.6]} 35... Kg7 {[%clk 0:01:00.2]} 36. h4 {[%clk
0:01:17.6]} 36... h5 {[%clk 0:00:50.9]} 37. Qe5+ {[%clk 0:01:13]} 37... Qxe5
{[%clk 0:00:48.8]} 38. Nxe5 {[%clk 0:01:14.9]} 38... Rb2 {[%clk 0:00:49.4]} 39.
Rd3 {[%clk 0:01:15.4]} 39... Bb4 {[%clk 0:00:47.2]} 40. Kf1 {[%clk 0:01:09.4]}
40... f6 {[%clk 0:00:33.2]} 41. Nc6 {[%clk 0:01:08.2]} 41... Bc5 {[%clk
0:00:30.7]} 42. Nxa7 {[%clk 0:01:07.8]} 42... g5 {[%clk 0:00:31.7]} 43. Nb5
{[%clk 0:01:01.5]} 43... g4 {[%clk 0:00:23.5]} 44. Nd4 {[%clk 0:00:52.8]} 44...
Bb4 {[%clk 0:00:24]} 45. Ne6+ {[%clk 0:00:50.3]} 45... Kf7 {[%clk 0:00:21.2]}
46. Nf4 {[%clk 0:00:51.1]} 46... Rb1+ {[%clk 0:00:22.1]} 47. Kg2 {[%clk
0:00:49.6]} 1-0

[Event "*** Titled Tuesday 3|2 Blitz"]
[Site "Chess.com"]
[Date "2016.06.07"]
[Round "4"]
[White "oskariot"]
[Black "Bigfish1995"]
[Result "1-0"]
[WhiteElo "2433"]
[BlackElo "2594"]
[TimeControl "180+2"]
[EndTime "17:46:48 PDT"]
[Termination "oskariot won by checkmate"]

1. e4 {[%clk 0:02:58.9]} 1... e6 {[%clk 0:02:59.5]} 2. d4 {[%clk 0:02:59.6]}
2... d5 {[%clk 0:03:01.1]} 3. Nd2 {[%clk 0:03:00.9]} 3... Nd7 {[%clk 0:03:01.3]}
4. Ngf3 {[%clk 0:02:56]} 4... dxe4 {[%clk 0:02:57.6]} 5. Nxe4 {[%clk 0:02:56.4]}
5... Ngf6 {[%clk 0:02:58.8]} 6. Bd3 {[%clk 0:02:57.6]} 6... Be7 {[%clk
0:02:58.1]} 7. Bg5 {[%clk 0:02:56]} 7... h6 {[%clk 0:02:58.4]} 8. Nxf6+ {[%clk
0:02:49]} 8... Bxf6 {[%clk 0:02:58.8]} 9. Bxf6 {[%clk 0:02:49]} 9... Qxf6 {[%clk
0:02:59.8]} 10. Qe2 {[%clk 0:02:50.3]} 10... c5 {[%clk 0:02:58.3]} 11. dxc5
{[%clk 0:02:40.7]} 11... O-O {[%clk 0:02:55]} 12. c3 {[%clk 0:02:29.4]} 12...
Nxc5 {[%clk 0:02:55.6]} 13. Bc2 {[%clk 0:02:29.4]} 13... b6 {[%clk 0:02:57.1]}
14. O-O-O {[%clk 0:02:22.6]} 14... Bb7 {[%clk 0:02:53.1]} 15. b4 {[%clk
0:01:54.6]} 15... Ne4 {[%clk 0:02:45.4]} 16. Bxe4 {[%clk 0:01:33]} 16... Qxc3+
{[%clk 0:02:43.7]} 17. Bc2 {[%clk 0:01:08.2]} 17... Qa1+ {[%clk 0:02:35.5]} 18.
Kd2 {[%clk 0:01:03.8]} 18... Rfd8+ {[%clk 0:02:24.1]} 19. Ke3 {[%clk 0:00:30.3]}
19... Qc3+ {[%clk 0:02:16.6]} 20. Rd3 {[%clk 0:00:31.2]} 20... Qxb4 {[%clk
0:02:17.4]} 21. Rhd1 {[%clk 0:00:29.5]} 21... Qc5+ {[%clk 0:02:13.5]} 22. Kf4
{[%clk 0:00:30.2]} 22... Rdc8 {[%clk 0:01:28.8]} 23. Bb3 {[%clk 0:00:23]} 23...
Qf5+ {[%clk 0:01:08.4]} 24. Kg3 {[%clk 0:00:23.2]} 24... Qg6+ {[%clk 0:01:06.4]}
25. Kh3 {[%clk 0:00:18.6]} 25... Be4 {[%clk 0:00:46.5]} 26. Rd4 {[%clk
0:00:15.5]} 26... Qh5+ {[%clk 0:00:29]} 27. Kg3 {[%clk 0:00:14.6]} 27... Qg6+
{[%clk 0:00:26]} 28. Kh3 {[%clk 0:00:13.5]} 28... f5 {[%clk 0:00:13.9]} 29. Ne5
{[%clk 0:00:13.1]} 29... Qf6 {[%clk 0:00:13.9]} 30. Rxe4 {[%clk 0:00:14.1]}
30... fxe4 {[%clk 0:00:14.8]} 31. Qxe4 {[%clk 0:00:15.6]} 31... Rd8 {[%clk
0:00:12.4]} 32. Nd7 {[%clk 0:00:13.9]} 32... Qxf2 {[%clk 0:00:11.4]} 33. Bxe6+
{[%clk 0:00:14.5]} 33... Kh8 {[%clk 0:00:13]} 34. Ne5 {[%clk 0:00:13.4]} 34...
Rxd1 {[%clk 0:00:13.8]} 35. Qxa8+ {[%clk 0:00:12.9]} 35... Kh7 {[%clk 0:00:13]}
36. Qg8# {[%clk 0:00:14.1]} 1-0

[Event "*** Titled Tuesday 3|2 Blitz"]
[Site "Chess.com"]
[Date "2016.06.07"]
[Round "4"]
[White "Dlugy"]
[Black "platy3"]
[Result "0-1"]
[WhiteElo "2598"]
[BlackElo "2691"]
[TimeControl "180+2"]
[EndTime "17:47:07 PDT"]
[Termination "platy3 won by resignation"]

1. d4 {[%clk 0:03:01.9]} 1... Nf6 {[%clk 0:02:59]} 2. Bf4 {[%clk 0:03:03.4]}
2... c5 {[%clk 0:02:56.3]} 3. d5 {[%clk 0:03:03.9]} 3... e6 {[%clk 0:02:55.1]}
4. Nc3 {[%clk 0:03:04.9]} 4... d6 {[%clk 0:02:55.9]} 5. e4 {[%clk 0:03:05.4]}
5... e5 {[%clk 0:02:56.9]} 6. Bd2 {[%clk 0:03:00.4]} 6... Be7 {[%clk 0:02:56.7]}
7. Nf3 {[%clk 0:03:01.1]} 7... O-O {[%clk 0:02:57.2]} 8. Be2 {[%clk 0:02:54.3]}
8... Na6 {[%clk 0:02:57.8]} 9. O-O {[%clk 0:02:54.3]} 9... Nc7 {[%clk 0:02:59]}
10. a4 {[%clk 0:02:55.4]} 10... Rb8 {[%clk 0:02:57.6]} 11. Bd3 {[%clk
0:02:49.8]} 11... Nfe8 {[%clk 0:02:52.8]} 12. Qe2 {[%clk 0:02:37.2]} 12... g6
{[%clk 0:02:51.4]} 13. Bh6 {[%clk 0:02:37.2]} 13... Ng7 {[%clk 0:02:52.1]} 14.
Nd2 {[%clk 0:02:38.5]} 14... a6 {[%clk 0:02:43.5]} 15. a5 {[%clk 0:02:36.3]}
15... Bd7 {[%clk 0:02:42.4]} 16. Kh1 {[%clk 0:02:15.4]} 16... f5 {[%clk
0:02:36.5]} 17. exf5 {[%clk 0:02:16.2]} 17... gxf5 {[%clk 0:02:29.6]} 18. f3
{[%clk 0:02:17.1]} 18... Rf6 {[%clk 0:02:20.4]} 19. Bxg7 {[%clk 0:02:10.6]}
19... Kxg7 {[%clk 0:02:21.3]} 20. g4 {[%clk 0:02:12.3]} 20... fxg4 {[%clk
0:00:49.8]} 21. fxg4 {[%clk 0:02:07]} 21... Qg8 {[%clk 0:00:39.5]} 22. Rxf6
{[%clk 0:02:02.2]} 22... Bxf6 {[%clk 0:00:41]} 23. Nde4 {[%clk 0:02:03.7]} 23...
Nxd5 {[%clk 0:00:39]} 24. Nxd6 {[%clk 0:01:40.9]} 24... Kh8 {[%clk 0:00:36.2]}
25. Nxd5 {[%clk 0:01:27.7]} 25... Qxd5+ {[%clk 0:00:36.5]} 26. Ne4 {[%clk
0:01:29.6]} 26... Bc6 {[%clk 0:00:33.3]} 27. Kg1 {[%clk 0:01:28.2]} 27... Rf8
{[%clk 0:00:27.4]} 28. Rf1 {[%clk 0:01:19.6]} 28... c4 {[%clk 0:00:28.8]} 29.
Rxf6 {[%clk 0:01:20.4]} 29... Rxf6 {[%clk 0:00:21.6]} 30. Nxf6 {[%clk 0:01:22]}
30... cxd3 {[%clk 0:00:23.3]} 31. cxd3 {[%clk 0:01:19.5]} 31... Qh1+ {[%clk
0:00:21.2]} 32. Kf2 {[%clk 0:01:20.7]} 32... Qxh2+ {[%clk 0:00:22.8]} 33. Ke1
{[%clk 0:01:14]} 33... Qg3+ {[%clk 0:00:23.7]} 34. Qf2 {[%clk 0:01:10.4]} 34...
Qxd3 {[%clk 0:00:23.8]} 35. Qf5 {[%clk 0:00:44.9]} 35... Qxf5 {[%clk 0:00:24]}
36. gxf5 {[%clk 0:00:45.6]} 36... Kg7 {[%clk 0:00:19.7]} 37. Ng4 {[%clk
0:00:46.8]} 37... h5 {[%clk 0:00:15.7]} 38. Nxe5 {[%clk 0:00:47.4]} 38... Kf6
{[%clk 0:00:17.3]} 39. Nd3 {[%clk 0:00:43.3]} 39... Kxf5 {[%clk 0:00:18.3]} 40.
Kf2 {[%clk 0:00:45.2]} 40... Ke4 {[%clk 0:00:18.1]} 41. Nc5+ {[%clk 0:00:45.7]}
41... Kd4 {[%clk 0:00:19.4]} 42. Ne6+ {[%clk 0:00:45.8]} 42... Kc4 {[%clk
0:00:19.8]} 43. Kg3 {[%clk 0:00:46.3]} 43... Kb4 {[%clk 0:00:16.4]} 44. Ng7
{[%clk 0:00:47.3]} 44... Kxa5 {[%clk 0:00:15.9]} 45. Nxh5 {[%clk 0:00:48.9]}
45... Kb4 {[%clk 0:00:17.6]} 46. Nf4 {[%clk 0:00:47.5]} 46... Kb3 {[%clk
0:00:18.8]} 47. Nd3 {[%clk 0:00:48.3]} 47... Kc2 {[%clk 0:00:19.5]} 48. Nc5
{[%clk 0:00:49.2]} 48... Kxb2 {[%clk 0:00:20.3]} 49. Kf4 {[%clk 0:00:51.1]}
49... a5 {[%clk 0:00:19.9]} 50. Ke3 {[%clk 0:00:52.4]} 50... a4 {[%clk
0:00:20.7]} 51. Nd3+ {[%clk 0:00:54.3]} 51... Kc3 {[%clk 0:00:20.7]} 52. Nc1
{[%clk 0:00:56]} 52... a3 {[%clk 0:00:22.1]} 53. Ne2+ {[%clk 0:00:55.9]} 53...
Kb2 {[%clk 0:00:22.4]} 54. Nf4 {[%clk 0:00:57.2]} 54... a2 {[%clk 0:00:23.1]}
55. Nd3+ {[%clk 0:00:58.9]} 55... Kb1 {[%clk 0:00:24.5]} 0-1

[Event "*** Titled Tuesday 3|2 Blitz"]
[Site "Chess.com"]
[Date "2016.06.07"]
[Round "4"]
[White "aspired"]
[Black "JustaTrickstar"]
[Result "0-1"]
[WhiteElo "2485"]
[BlackElo "2484"]
[TimeControl "180+2"]
[EndTime "17:47:32 PDT"]
[Termination "JustaTrickstar won by resignation"]

1. e4 {[%clk 0:03:01.9]} 1... c5 {[%clk 0:02:57.1]} 2. Nf3 {[%clk 0:03:02.4]}
2... e6 {[%clk 0:02:55.3]} 3. d4 {[%clk 0:03:02.1]} 3... cxd4 {[%clk 0:02:56.3]}
4. Nxd4 {[%clk 0:03:04]} 4... Bc5 {[%clk 0:02:57]} 5. Nb3 {[%clk 0:03:01.4]}
5... Bb6 {[%clk 0:02:57.5]} 6. c4 {[%clk 0:02:55]} 6... Nc6 {[%clk 0:02:54.1]}
7. Nc3 {[%clk 0:02:46.6]} 7... Nge7 {[%clk 0:02:48.9]} 8. g3 {[%clk 0:02:25.4]}
8... O-O {[%clk 0:02:47.7]} 9. Bg2 {[%clk 0:02:26.6]} 9... d6 {[%clk 0:02:42.8]}
10. O-O {[%clk 0:02:26.6]} 10... a6 {[%clk 0:02:36.1]} 11. Qe2 {[%clk
0:02:20.6]} 11... f5 {[%clk 0:02:34.6]} 12. Rd1 {[%clk 0:02:13]} 12... Qc7
{[%clk 0:02:27.8]} 13. Bf4 {[%clk 0:01:37.7]} 13... e5 {[%clk 0:02:24.8]} 14.
Bg5 {[%clk 0:01:38.9]} 14... h6 {[%clk 0:02:16.3]} 15. Bxe7 {[%clk 0:01:39.6]}
15... Nxe7 {[%clk 0:02:18.2]} 16. Rac1 {[%clk 0:01:37.8]} 16... f4 {[%clk
0:02:15.5]} 17. Kh1 {[%clk 0:00:53.2]} 17... Be6 {[%clk 0:02:05.5]} 18. Na4
{[%clk 0:00:47.3]} 18... Bc5 {[%clk 0:01:31.3]} 19. Naxc5 {[%clk 0:00:42]} 19...
dxc5 {[%clk 0:01:28.8]} 20. Rd5 {[%clk 0:00:29.1]} 20... b6 {[%clk 0:01:22.9]}
21. Nd2 {[%clk 0:00:23.9]} 21... Nc6 {[%clk 0:01:15.6]} 22. Qh5 {[%clk
0:00:19.9]} 22... Rae8 {[%clk 0:01:04.3]} 23. Nf3 {[%clk 0:00:16.2]} 23... Bf7
{[%clk 0:00:49.6]} 24. Qg4 {[%clk 0:00:14.5]} 24... Bxd5 {[%clk 0:00:51]} 25.
cxd5 {[%clk 0:00:11]} 25... Nd4 {[%clk 0:00:49.7]} 26. Nxd4 {[%clk 0:00:09]}
26... exd4 {[%clk 0:00:51.6]} 27. Kg1 {[%clk 0:00:08.8]} 27... Rf6 {[%clk
0:00:47.8]} 28. b4 {[%clk 0:00:09.4]} 28... Qd6 {[%clk 0:00:47.7]} 29. bxc5
{[%clk 0:00:10.5]} 29... bxc5 {[%clk 0:00:49.6]} 30. Qd1 {[%clk 0:00:10.1]}
30... Ref8 {[%clk 0:00:50.5]} 31. Qc2 {[%clk 0:00:11.2]} 31... fxg3 {[%clk
0:00:50.1]} 32. fxg3 {[%clk 0:00:13.1]} 32... Rf2 {[%clk 0:00:48.7]} 33. Qxc5
{[%clk 0:00:13.8]} 33... Qf6 {[%clk 0:00:48.2]} 34. d6 {[%clk 0:00:10.4]} 34...
d3 {[%clk 0:00:39.1]} 35. Qd5+ {[%clk 0:00:10.5]} 35... Kh8 {[%clk 0:00:38.5]}
36. e5 {[%clk 0:00:11.7]} 36... Qg5 {[%clk 0:00:39]} 37. Rd1 {[%clk 0:00:10.6]}
37... Qe3 {[%clk 0:00:39]} 38. Kh1 {[%clk 0:00:09]} 38... d2 {[%clk 0:00:38.4]}
39. Rg1 {[%clk 0:00:04.3]} 39... Re2 {[%clk 0:00:26]} 40. d7 {[%clk 0:00:03.3]}
40... Qxg1+ {[%clk 0:00:24.3]} 41. Kxg1 {[%clk 0:00:03.8]} 41... Re1+ {[%clk
0:00:25.8]} 42. Bf1 {[%clk 0:00:05.2]} 42... Rexf1+ {[%clk 0:00:25.9]} 43. Kg2
{[%clk 0:00:06.1]} 43... d1=Q {[%clk 0:00:26.5]} 44. Qxd1 {[%clk 0:00:06.9]}
44... Rxd1 {[%clk 0:00:26.7]} 45. e6 {[%clk 0:00:08.4]} 45... Rd8 {[%clk
0:00:27.4]} 46. e7 {[%clk 0:00:09.7]} 46... R1xd7 {[%clk 0:00:26.9]} 47. exd8=Q+
{[%clk 0:00:10]} 47... Rxd8 {[%clk 0:00:28.8]} 0-1

[Event "*** Titled Tuesday 3|2 Blitz"]
[Site "Chess.com"]
[Date "2016.06.07"]
[Round "4"]
[White "Ksenia_Legenko"]
[Black "Generalas"]
[Result "0-1"]
[WhiteElo "2039"]
[BlackElo "2224"]
[TimeControl "180+2"]
[EndTime "17:47:34 PDT"]
[Termination "Generalas won by resignation"]

1. d4 {[%clk 0:03:01.8]} 1... d5 {[%clk 0:03:00.8]} 2. c4 {[%clk 0:03:02]} 2...
c6 {[%clk 0:03:02.2]} 3. Nf3 {[%clk 0:03:02.6]} 3... Nf6 {[%clk 0:03:03.3]} 4.
g3 {[%clk 0:03:03.6]} 4... Nbd7 {[%clk 0:02:58.7]} 5. Bg2 {[%clk 0:03:04.3]}
5... e6 {[%clk 0:02:58.9]} 6. O-O {[%clk 0:03:05.7]} 6... Bd6 {[%clk 0:02:59.6]}
7. Qc2 {[%clk 0:03:02.8]} 7... O-O {[%clk 0:02:56.2]} 8. Nbd2 {[%clk 0:03:04.1]}
8... Re8 {[%clk 0:02:52.4]} 9. e4 {[%clk 0:03:04.5]} 9... dxe4 {[%clk
0:02:52.8]} 10. Nxe4 {[%clk 0:03:05.3]} 10... Nxe4 {[%clk 0:02:51.6]} 11. Qxe4
{[%clk 0:03:06.8]} 11... e5 {[%clk 0:02:52.6]} 12. Re1 {[%clk 0:02:48]} 12...
Nf6 {[%clk 0:02:48]} 13. Qc2 {[%clk 0:02:41.4]} 13... exd4 {[%clk 0:02:40.4]}
14. Rxe8+ {[%clk 0:02:20.9]} 14... Qxe8 {[%clk 0:02:30.2]} 15. c5 {[%clk
0:02:16.4]} 15... Bc7 {[%clk 0:02:22.1]} 16. Bg5 {[%clk 0:02:12.9]} 16... Nd5
{[%clk 0:02:06.4]} 17. Re1 {[%clk 0:01:58.9]} 17... Qf8 {[%clk 0:02:06.4]} 18.
Nxd4 {[%clk 0:01:57.5]} 18... h6 {[%clk 0:01:57.7]} 19. Bxd5 {[%clk 0:01:49.5]}
19... cxd5 {[%clk 0:01:16.4]} 20. Be7 {[%clk 0:01:48.3]} 20... Qe8 {[%clk
0:01:12.6]} 21. Re3 {[%clk 0:01:44.8]} 21... Bh3 {[%clk 0:01:07]} 22. Qe2 {[%clk
0:01:25.8]} 22... Qd7 {[%clk 0:01:02.4]} 23. b4 {[%clk 0:01:15.3]} 23... Re8
{[%clk 0:00:55.5]} 24. b5 {[%clk 0:01:12.3]} 24... Bd8 {[%clk 0:00:54.4]} 25.
Bd6 {[%clk 0:01:04.3]} 25... Rxe3 {[%clk 0:00:51.5]} 26. Qxe3 {[%clk 0:01:05.1]}
26... Bf6 {[%clk 0:00:52.1]} 27. Be5 {[%clk 0:00:37.2]} 27... Qg4 {[%clk
0:00:21.4]} 28. f3 {[%clk 0:00:37.1]} 28... Bg5 {[%clk 0:00:19.9]} 29. Qe2
{[%clk 0:00:31.4]} 29... Qc8 {[%clk 0:00:19]} 30. c6 {[%clk 0:00:26]} 30... bxc6
{[%clk 0:00:12.6]} 31. bxc6 {[%clk 0:00:26.5]} 31... Be7 {[%clk 0:00:11]} 32. c7
{[%clk 0:00:27.2]} 32... Bc5 {[%clk 0:00:11.9]} 33. Qb2 {[%clk 0:00:23]} 33...
Bd7 {[%clk 0:00:10.2]} 34. Qb8 {[%clk 0:00:21.7]} 34... f6 {[%clk 0:00:10.7]}
35. f4 {[%clk 0:00:02.1]} 35... fxe5 {[%clk 0:00:11.1]} 36. fxe5 {[%clk
0:00:02.9]} 36... Bxd4+ {[%clk 0:00:12.3]} 37. Kg2 {[%clk 0:00:03.7]} 37... Bxe5
{[%clk 0:00:13.9]} 38. Qxc8+ {[%clk 0:00:04]} 38... Bxc8 {[%clk 0:00:14.5]} 0-1

[Event "*** Titled Tuesday 3|2 Blitz"]
[Site "Chess.com"]
[Date "2016.06.07"]
[Round "4"]
[White "FabianEnglert"]
[Black "Penguininja"]
[Result "1/2-1/2"]
[WhiteElo "2363"]
[BlackElo "2224"]
[TimeControl "180+2"]
[EndTime "17:47:42 PDT"]
[Termination "Game drawn by repetition"]

1. Nf3 {[%clk 0:03:01.9]} 1... Nf6 {[%clk 0:03:00]} 2. c4 {[%clk 0:03:02.6]}
2... c5 {[%clk 0:02:59.7]} 3. Nc3 {[%clk 0:03:03]} 3... Nc6 {[%clk 0:03:00.2]}
4. d4 {[%clk 0:03:03.8]} 4... cxd4 {[%clk 0:03:01.1]} 5. Nxd4 {[%clk 0:03:05.7]}
5... g6 {[%clk 0:02:59.7]} 6. e4 {[%clk 0:03:05.2]} 6... Bg7 {[%clk 0:02:59.8]}
7. Be3 {[%clk 0:03:03.8]} 7... O-O {[%clk 0:03:00]} 8. Be2 {[%clk 0:03:05.1]}
8... d6 {[%clk 0:03:00.3]} 9. O-O {[%clk 0:03:06]} 9... Bd7 {[%clk 0:02:42.4]}
10. Qd2 {[%clk 0:03:04.8]} 10... Rc8 {[%clk 0:02:43.2]} 11. Rfc1 {[%clk
0:03:02.1]} 11... a6 {[%clk 0:02:43.9]} 12. Rab1 {[%clk 0:02:55.6]} 12... Ng4
{[%clk 0:02:27.1]} 13. Bxg4 {[%clk 0:02:55.9]} 13... Bxg4 {[%clk 0:02:29]} 14.
f3 {[%clk 0:02:56.9]} 14... Bd7 {[%clk 0:02:27.7]} 15. b3 {[%clk 0:02:50.4]}
15... Re8 {[%clk 0:02:18.4]} 16. Rc2 {[%clk 0:02:49.6]} 16... Qa5 {[%clk
0:02:18.5]} 17. Nd5 {[%clk 0:02:39.2]} 17... Qxd2 {[%clk 0:02:00.1]} 18. Rxd2
{[%clk 0:02:41.1]} 18... Nxd4 {[%clk 0:01:57.1]} 19. Bxd4 {[%clk 0:02:43]} 19...
Bxd4+ {[%clk 0:01:58.2]} 20. Rxd4 {[%clk 0:02:44.9]} 20... Rc6 {[%clk
0:01:59.1]} 21. Rbd1 {[%clk 0:02:22.7]} 21... Be6 {[%clk 0:01:58.7]} 22. a4
{[%clk 0:01:52.4]} 22... Bxd5 {[%clk 0:01:48.4]} 23. Rxd5 {[%clk 0:01:53.4]}
23... Rec8 {[%clk 0:01:44.6]} 24. Kf2 {[%clk 0:01:46.5]} 24... Rc5 {[%clk
0:01:43.7]} 25. Ke3 {[%clk 0:01:44.1]} 25... Rxd5 {[%clk 0:01:42.8]} 26. Rxd5
{[%clk 0:01:26]} 26... Rc5 {[%clk 0:01:43.6]} 27. Kd4 {[%clk 0:01:02.3]} 27...
Rc7 {[%clk 0:01:44.4]} 28. f4 {[%clk 0:00:57.7]} 28... Kf8 {[%clk 0:01:44.1]}
29. f5 {[%clk 0:00:54.8]} 29... Rc6 {[%clk 0:01:41.9]} 30. a5 {[%clk 0:00:51]}
30... h6 {[%clk 0:01:19.3]} 31. fxg6 {[%clk 0:00:37.9]} 31... fxg6 {[%clk
0:01:19.4]} 32. e5 {[%clk 0:00:38.3]} 32... dxe5+ {[%clk 0:01:04.8]} 33. Kxe5
{[%clk 0:00:40.2]} 33... Kf7 {[%clk 0:01:06.3]} 34. Rd7 {[%clk 0:00:37.2]} 34...
Rc5+ {[%clk 0:01:07.6]} 35. Rd5 {[%clk 0:00:32.1]} 35... Rc7 {[%clk 0:01:06.5]}
36. g4 {[%clk 0:00:31.2]} 36... Rc6 {[%clk 0:01:01.2]} 37. Kd4 {[%clk
0:00:25.9]} 37... Ke6 {[%clk 0:00:54.1]} 38. h4 {[%clk 0:00:24.4]} 38... Rc8
{[%clk 0:00:55]} 39. h5 {[%clk 0:00:23.8]} 39... g5 {[%clk 0:00:54.9]} 40. Rf5
{[%clk 0:00:21.3]} 40... Rd8+ {[%clk 0:00:54.6]} 41. Kc5 {[%clk 0:00:23]} 41...
Rd6 {[%clk 0:00:52.4]} 42. Rf8 {[%clk 0:00:21.2]} 42... Rc6+ {[%clk 0:00:53.5]}
43. Kb4 {[%clk 0:00:22.7]} 43... Kd7 {[%clk 0:00:49.2]} 44. Rh8 {[%clk
0:00:22.3]} 44... Rf6 {[%clk 0:00:49.1]} 45. Kc5 {[%clk 0:00:22]} 45... Rc6+
{[%clk 0:00:49.3]} 46. Kd5 {[%clk 0:00:22.7]} 46... Rf6 {[%clk 0:00:50.2]} 47.
Ke5 {[%clk 0:00:20.9]} 47... Re6+ {[%clk 0:00:51.3]} 48. Kf5 {[%clk 0:00:22.2]}
48... Rf6+ {[%clk 0:00:52.9]} 49. Ke5 {[%clk 0:00:23.3]} 49... Re6+ {[%clk
0:00:54.5]} 50. Kd4 {[%clk 0:00:24.5]} 50... Rd6+ {[%clk 0:00:53.5]} 51. Kc3
{[%clk 0:00:23.6]} 51... Rf6 {[%clk 0:00:53.6]} 52. Kb4 {[%clk 0:00:20.6]} 52...
Re6 {[%clk 0:00:52.3]} 53. Rb8 {[%clk 0:00:20.2]} 53... Kc7 {[%clk 0:00:53.2]}
54. Rh8 {[%clk 0:00:20.4]} 54... Rf6 {[%clk 0:00:53.6]} 55. Rh7 {[%clk
0:00:20.2]} 55... Kd7 {[%clk 0:00:54]} 56. Ka4 {[%clk 0:00:19.1]} 56... Rc6
{[%clk 0:00:54.2]} 57. Kb4 {[%clk 0:00:16.8]} 57... Rf6 {[%clk 0:00:54.9]} 58.
Ka4 {[%clk 0:00:16.3]} 58... Rc6 {[%clk 0:00:55.5]} 59. Kb4 {[%clk 0:00:17.6]}
59... Rf6 {[%clk 0:00:56.9]} 60. Ka4 {[%clk 0:00:18.8]} 1/2-1/2